[Event "*** Biggest EVER Titled Tuesday"]
[Site "Chess.com"]
[Date "2018.04.17"]
[Round "3"]
[White "PchelkinVK"]
[Black "Sam_ChessMood"]
[Result "1/2-1/2"]
[WhiteElo "2427"]
[BlackElo "2624"]
[TimeControl "180+2"]
[EndTime "13:37:10 PDT"]
[Termination "Game drawn by agreement"]

1. d4 {[%clk 0:03:01.6]} 1... Nf6 {[%clk 0:03:00.5]} 2. Nc3 {[%clk 0:03:01.9]}
2... d5 {[%clk 0:02:59]} 3. Bf4 {[%clk 0:03:02.4]} 3... c5 {[%clk 0:02:54.8]} 4.
e4 {[%clk 0:03:02.6]} 4... dxe4 {[%clk 0:02:43.8]} 5. dxc5 {[%clk 0:03:02.4]}
5... Bd7 {[%clk 0:02:25.5]} 6. Nd5 {[%clk 0:02:04.4]} 6... Nxd5 {[%clk
0:01:57.1]} 7. Qxd5 {[%clk 0:02:06.3]} 7... Nc6 {[%clk 0:01:58.3]} 8. c3 {[%clk
0:02:02.9]} 8... e5 {[%clk 0:01:49.9]} 9. Bxe5 {[%clk 0:01:17.7]} 9... Qg5
{[%clk 0:01:48.9]} 10. f4 {[%clk 0:01:18.8]} 10... exf3 {[%clk 0:01:49.3]} 11.
Nxf3 {[%clk 0:01:19.9]} 11... Qe3+ {[%clk 0:01:50.4]} 12. Be2 {[%clk 0:01:20.6]}
12... Be6 {[%clk 0:01:50.6]} 13. Qd3 {[%clk 0:01:02]} 13... Bxc5 {[%clk
0:01:45.8]} 14. Qxe3 {[%clk 0:00:58.9]} 14... Bxe3 {[%clk 0:01:46.4]} 15. Bb5
{[%clk 0:00:38]} 15... O-O {[%clk 0:01:35.2]} 16. Bxc6 {[%clk 0:00:32]} 16...
bxc6 {[%clk 0:01:36]} 17. Bd4 {[%clk 0:00:33.9]} 17... Bf4 {[%clk 0:01:31.2]}
18. Kf2 {[%clk 0:00:32.8]} 18... a5 {[%clk 0:01:14.2]} 19. Rhe1 {[%clk
0:00:31.4]} 19... Rfb8 {[%clk 0:01:11.9]} 20. b3 {[%clk 0:00:25.7]} 20... Bc7
{[%clk 0:00:55.7]} 21. c4 {[%clk 0:00:24.6]} 21... a4 {[%clk 0:00:56]} 22. Ne5
{[%clk 0:00:18.3]} 22... Ra6 {[%clk 0:00:48.1]} 23. Nd3 {[%clk 0:00:11.8]} 23...
axb3 {[%clk 0:00:41.2]} 24. axb3 {[%clk 0:00:13.7]} 24... Rxa1 {[%clk
0:00:41.9]} 25. Rxa1 {[%clk 0:00:15.6]} 25... Rd8 {[%clk 0:00:22.9]} 26. Be5
{[%clk 0:00:14.9]} 26... Rxd3 {[%clk 0:00:19.6]} 27. Bxc7 {[%clk 0:00:15.6]}
27... h5 {[%clk 0:00:20.5]} 28. Rb1 {[%clk 0:00:15.6]} 28... Rd2+ {[%clk
0:00:20.2]} 29. Kf3 {[%clk 0:00:16.7]} 29... Bg4+ {[%clk 0:00:18.1]} 30. Kg3
{[%clk 0:00:17.4]} 30... Bf5 {[%clk 0:00:19.4]} 31. Re1 {[%clk 0:00:17.8]} 31...
Rd3+ {[%clk 0:00:19.7]} 32. Kf4 {[%clk 0:00:19.2]} 32... Be6 {[%clk 0:00:20.1]}
33. Re3 {[%clk 0:00:20.6]} 33... Rd2 {[%clk 0:00:21.5]} 34. Kg3 {[%clk
0:00:21.1]} 34... g5 {[%clk 0:00:19.2]} 35. h3 {[%clk 0:00:21.7]} 35... Kg7
{[%clk 0:00:19.7]} 36. Be5+ {[%clk 0:00:22.1]} 36... Kg6 {[%clk 0:00:20.3]} 37.
Bc3 {[%clk 0:00:24]} 37... h4+ {[%clk 0:00:20.9]} 38. Kh2 {[%clk 0:00:24.6]}
38... Rc2 {[%clk 0:00:22.2]} 39. Rf3 {[%clk 0:00:24]} 39... Bf5 {[%clk
0:00:22.4]} 40. Bd4 {[%clk 0:00:25.3]} 40... Be4 {[%clk 0:00:17.1]} 41. Rf6+
{[%clk 0:00:25.9]} 41... Kh5 {[%clk 0:00:18]} 42. Rf2 {[%clk 0:00:27.8]} 42...
Rxf2 {[%clk 0:00:15.5]} 43. Bxf2 {[%clk 0:00:28.4]} 43... f5 {[%clk 0:00:15.1]}
44. b4 {[%clk 0:00:20.3]} 44... Bd3 {[%clk 0:00:15.3]} 45. b5 {[%clk 0:00:20.5]}
45... cxb5 {[%clk 0:00:15.7]} 46. cxb5 {[%clk 0:00:22.4]} 46... Bxb5 {[%clk
0:00:17.1]} 47. Be3 {[%clk 0:00:24]} 47... Bc6 {[%clk 0:00:16.1]} 48. Kg1 {[%clk
0:00:25.1]} 48... Kg6 {[%clk 0:00:16]} 49. Kf2 {[%clk 0:00:26.3]} 49... f4
{[%clk 0:00:16.3]} 50. Bd4 {[%clk 0:00:27.5]} 50... Kf5 {[%clk 0:00:17.6]} 51.
Bb6 {[%clk 0:00:28.4]} 51... Bd5 {[%clk 0:00:16.9]} 52. Bd8 {[%clk 0:00:29.1]}
52... Be4 {[%clk 0:00:17.2]} 53. Be7 {[%clk 0:00:30]} 53... Bd5 {[%clk
0:00:18.1]} 54. Bd8 {[%clk 0:00:31.2]} 54... Bf7 {[%clk 0:00:16.5]} 55. Be7
{[%clk 0:00:32]} 55... Bh5 {[%clk 0:00:17.4]} 56. Bd8 {[%clk 0:00:33.3]} 56...
Bf7 {[%clk 0:00:15.7]} 57. Be7 {[%clk 0:00:34.2]} 57... Bd5 {[%clk 0:00:17]} 58.
Bd8 {[%clk 0:00:35.3]} 58... g4 {[%clk 0:00:18]} 59. Bxh4 {[%clk 0:00:34.8]}
59... g3+ {[%clk 0:00:19]} 60. Bxg3 {[%clk 0:00:35.3]} 60... fxg3+ {[%clk
0:00:20.1]} 61. Kxg3 {[%clk 0:00:37.2]} 1/2-1/2

[Event "*** Biggest EVER Titled Tuesday"]
[Site "Chess.com"]
[Date "2018.04.17"]
[Round "3"]
[White "DiogenesSinopeus"]
[Black "Marcus_Harvey"]
[Result "0-1"]
[WhiteElo "2417"]
[BlackElo "2623"]
[TimeControl "180+2"]
[EndTime "13:37:14 PDT"]
[Termination "Marcus_Harvey won by resignation"]

1. d4 {[%clk 0:03:01.9]} 1... e6 {[%clk 0:03:01.2]} 2. e4 {[%clk 0:03:02.4]}
2... d5 {[%clk 0:03:01.3]} 3. exd5 {[%clk 0:03:04.3]} 3... exd5 {[%clk
0:03:01.8]} 4. Nf3 {[%clk 0:03:05.8]} 4... Bd6 {[%clk 0:03:03.1]} 5. Bd3 {[%clk
0:03:07]} 5... Ne7 {[%clk 0:03:04]} 6. O-O {[%clk 0:03:08.1]} 6... O-O {[%clk
0:03:05.6]} 7. Re1 {[%clk 0:03:08.9]} 7... Bf5 {[%clk 0:03:06.7]} 8. Bg5 {[%clk
0:03:04.8]} 8... f6 {[%clk 0:03:06.2]} 9. Bh4 {[%clk 0:03:05.6]} 9... Qd7 {[%clk
0:03:04.5]} 10. Bg3 {[%clk 0:03:01.5]} 10... Bxd3 {[%clk 0:03:04.7]} 11. Qxd3
{[%clk 0:03:00.4]} 11... Nf5 {[%clk 0:03:05.8]} 12. Nbd2 {[%clk 0:02:43.2]}
12... Nxg3 {[%clk 0:03:04.9]} 13. hxg3 {[%clk 0:02:43.9]} 13... Nc6 {[%clk
0:03:06.2]} 14. c3 {[%clk 0:02:44.8]} 14... Rae8 {[%clk 0:03:03.2]} 15. Qb5
{[%clk 0:02:43.8]} 15... Be7 {[%clk 0:02:40.2]} 16. b4 {[%clk 0:02:32.3]} 16...
a6 {[%clk 0:02:31.7]} 17. Qf1 {[%clk 0:01:56.3]} 17... Bd6 {[%clk 0:02:22.2]}
18. a4 {[%clk 0:01:51.7]} 18... Rxe1 {[%clk 0:02:02.8]} 19. Rxe1 {[%clk
0:01:53.6]} 19... Re8 {[%clk 0:02:04.2]} 20. Rxe8+ {[%clk 0:01:50.9]} 20... Qxe8
{[%clk 0:02:03.2]} 21. b5 {[%clk 0:01:52.3]} 21... Nb8 {[%clk 0:01:50.5]} 22. c4
{[%clk 0:01:34.4]} 22... dxc4 {[%clk 0:01:51.3]} 23. Qxc4+ {[%clk 0:01:36.3]}
23... Qf7 {[%clk 0:01:52.4]} 24. d5 {[%clk 0:01:32.5]} 24... Qd7 {[%clk
0:01:36]} 25. Nd4 {[%clk 0:01:27.2]} 25... axb5 {[%clk 0:01:34.5]} 26. axb5
{[%clk 0:01:26.8]} 26... Qg4 {[%clk 0:01:27.9]} 27. N2f3 {[%clk 0:01:05.3]}
27... Nd7 {[%clk 0:01:23.3]} 28. Qa4 {[%clk 0:00:57.7]} 28... Nb6 {[%clk
0:01:23.3]} 29. Qa2 {[%clk 0:00:53.4]} 29... Qe4 {[%clk 0:01:21.9]} 30. Qa7
{[%clk 0:00:46.9]} 30... Qxd5 {[%clk 0:01:20.1]} 31. Qb8+ {[%clk 0:00:47.3]}
31... Kf7 {[%clk 0:01:21.3]} 32. Qh8 {[%clk 0:00:40.3]} 32... Qe4 {[%clk
0:01:09.7]} 33. Qd8 {[%clk 0:00:31.6]} 33... Qe8 {[%clk 0:01:06.4]} 34. Qxe8+
{[%clk 0:00:23.7]} 34... Kxe8 {[%clk 0:01:08.3]} 35. Kf1 {[%clk 0:00:23.2]}
35... g6 {[%clk 0:01:07.9]} 36. Ke2 {[%clk 0:00:23.8]} 36... Kd7 {[%clk
0:01:04.3]} 37. Kd3 {[%clk 0:00:24.9]} 37... c6 {[%clk 0:01:04.8]} 38. bxc6+
{[%clk 0:00:25]} 38... bxc6 {[%clk 0:01:06.7]} 39. Nd2 {[%clk 0:00:23]} 39... f5
{[%clk 0:01:04.6]} 40. N4f3 {[%clk 0:00:23]} 40... Nd5 {[%clk 0:01:02.2]} 41.
Ng5 {[%clk 0:00:21.5]} 41... Nf6 {[%clk 0:01:02.4]} 42. Nc4 {[%clk 0:00:20.9]}
42... Bc7 {[%clk 0:00:59.7]} 43. Kd4 {[%clk 0:00:20.2]} 43... Ke7 {[%clk
0:00:57.1]} 44. Nh3 {[%clk 0:00:06.5]} 44... Ne4 {[%clk 0:00:53.7]} 45. Ke3
{[%clk 0:00:05.5]} 45... h5 {[%clk 0:00:45.3]} 46. Ng1 {[%clk 0:00:06.6]} 46...
Bb8 {[%clk 0:00:43.1]} 47. Nf3 {[%clk 0:00:08]} 47... Ba7+ {[%clk 0:00:44]} 48.
Kf4 {[%clk 0:00:06.9]} 48... Kf6 {[%clk 0:00:42.2]} 49. Nfe5 {[%clk 0:00:03.5]}
49... Bb8 {[%clk 0:00:37]} 50. f3 {[%clk 0:00:02.6]} 50... Nxg3 {[%clk
0:00:38.1]} 51. Kxg3 {[%clk 0:00:03.7]} 51... Bxe5+ {[%clk 0:00:37.6]} 52. Kf2
{[%clk 0:00:05.6]} 52... Bd4+ {[%clk 0:00:38.1]} 53. Ke2 {[%clk 0:00:06.7]}
53... Ke6 {[%clk 0:00:39]} 54. Kd3 {[%clk 0:00:08.1]} 54... Kd5 {[%clk
0:00:40.6]} 55. Nd2 {[%clk 0:00:08.7]} 55... h4 {[%clk 0:00:40.5]} 56. Nc4
{[%clk 0:00:09]} 56... g5 {[%clk 0:00:40]} 57. Nd2 {[%clk 0:00:10.1]} 57... g4
{[%clk 0:00:41.3]} 58. Nf1 {[%clk 0:00:11.4]} 58... gxf3 {[%clk 0:00:41.5]} 59.
gxf3 {[%clk 0:00:12.8]} 59... h3 {[%clk 0:00:43]} 60. Nh2 {[%clk 0:00:14.3]}
60... c5 {[%clk 0:00:43.3]} 61. Nf1 {[%clk 0:00:15.3]} 61... c4+ {[%clk
0:00:44.5]} 62. Ke2 {[%clk 0:00:16.3]} 62... f4 {[%clk 0:00:43.2]} 63. Nd2
{[%clk 0:00:09.5]} 63... h2 {[%clk 0:00:42.5]} 64. Ne4 {[%clk 0:00:08.4]} 64...
h1=Q {[%clk 0:00:42.9]} 65. Nc3+ {[%clk 0:00:10]} 65... Bxc3 {[%clk 0:00:42.5]}
0-1

[Event "*** Biggest EVER Titled Tuesday"]
[Site "Chess.com"]
[Date "2018.04.17"]
[Round "3"]
[White "StoreySniper"]
[Black "nailbeshirli"]
[Result "0-1"]
[WhiteElo "2238"]
[BlackElo "2290"]
[TimeControl "180+2"]
[EndTime "13:37:23 PDT"]
[Termination "nailbeshirli won by resignation"]

1. c4 {[%clk 0:02:59]} 1... Nf6 {[%clk 0:02:59.4]} 2. g3 {[%clk 0:03:00.2]} 2...
c5 {[%clk 0:02:51.6]} 3. Bg2 {[%clk 0:03:01.1]} 3... Nc6 {[%clk 0:02:53.5]} 4.
Nc3 {[%clk 0:03:01.8]} 4... g6 {[%clk 0:02:53.6]} 5. d3 {[%clk 0:03:02.2]} 5...
Bg7 {[%clk 0:02:55.1]} 6. h4 {[%clk 0:03:02.7]} 6... h5 {[%clk 0:02:54.3]} 7.
Be3 {[%clk 0:03:03.7]} 7... d6 {[%clk 0:02:54.1]} 8. Nh3 {[%clk 0:03:04.3]} 8...
Bd7 {[%clk 0:02:51.7]} 9. Ng5 {[%clk 0:03:05.1]} 9... Rb8 {[%clk 0:02:50.2]} 10.
a4 {[%clk 0:03:04.4]} 10... a6 {[%clk 0:02:49.7]} 11. O-O {[%clk 0:03:03.1]}
11... O-O {[%clk 0:02:49.6]} 12. Qd2 {[%clk 0:02:57.9]} 12... Nd4 {[%clk
0:02:48.1]} 13. Rae1 {[%clk 0:02:55.5]} 13... Nf5 {[%clk 0:02:41.7]} 14. Bf4
{[%clk 0:02:50.9]} 14... Ng4 {[%clk 0:02:37.8]} 15. f3 {[%clk 0:02:42.9]} 15...
Nf6 {[%clk 0:02:10.4]} 16. e4 {[%clk 0:02:43.7]} 16... Nd4 {[%clk 0:02:07.1]}
17. Be3 {[%clk 0:02:42.7]} 17... Nh7 {[%clk 0:02:06]} 18. Nxh7 {[%clk
0:02:42.2]} 18... Kxh7 {[%clk 0:02:07.9]} 19. Rf2 {[%clk 0:02:31.7]} 19... b5
{[%clk 0:02:06.9]} 20. axb5 {[%clk 0:02:31.4]} 20... axb5 {[%clk 0:02:07.3]} 21.
cxb5 {[%clk 0:02:31.2]} 21... Nxb5 {[%clk 0:02:08.3]} 22. Nxb5 {[%clk
0:02:25.6]} 22... Rxb5 {[%clk 0:02:05.8]} 23. d4 {[%clk 0:02:26.7]} 23... Qb8
{[%clk 0:01:56.8]} 24. f4 {[%clk 0:02:25.7]} 24... cxd4 {[%clk 0:01:48]} 25.
Bxd4 {[%clk 0:02:26.8]} 25... Bxd4 {[%clk 0:01:44.9]} 26. Qxd4 {[%clk
0:02:27.7]} 26... Rb4 {[%clk 0:01:46.5]} 27. Qd2 {[%clk 0:02:25.3]} 27... Bg4
{[%clk 0:01:42.3]} 28. e5 {[%clk 0:02:26]} 28... Rd8 {[%clk 0:01:37]} 29. exd6
{[%clk 0:02:09.6]} 29... Rxd6 {[%clk 0:01:36.8]} 30. Qc3 {[%clk 0:02:10.7]}
30... Re6 {[%clk 0:01:25.3]} 31. Rxe6 {[%clk 0:01:53.8]} 31... Bxe6 {[%clk
0:01:27.2]} 32. Kh2 {[%clk 0:01:45.2]} 32... Qb6 {[%clk 0:01:25.7]} 33. Re2
{[%clk 0:01:31.8]} 33... Rb3 {[%clk 0:01:25.5]} 34. Qd2 {[%clk 0:01:18.2]} 34...
Qc5 {[%clk 0:01:13.4]} 35. Be4 {[%clk 0:01:07.7]} 35... Bg4 {[%clk 0:01:09.6]}
36. Rg2 {[%clk 0:00:52.8]} 36... Re3 {[%clk 0:01:01.8]} 37. b4 {[%clk 0:00:48]}
37... Qb6 {[%clk 0:00:59.2]} 38. Bc6 {[%clk 0:00:40.2]} 38... Rb3 {[%clk
0:00:21.9]} 39. b5 {[%clk 0:00:40.9]} 39... Rb1 {[%clk 0:00:23]} 40. Qf2 {[%clk
0:00:33.4]} 40... Qc7 {[%clk 0:00:20.8]} 41. Qe3 {[%clk 0:00:32.8]} 41... Qd8
{[%clk 0:00:21.4]} 42. Rd2 {[%clk 0:00:33.3]} 42... Qa5 {[%clk 0:00:20.2]} 43.
Be4 {[%clk 0:00:29.4]} 43... Rb3 {[%clk 0:00:18.9]} 44. Qd4 {[%clk 0:00:21.1]}
44... Rb4 {[%clk 0:00:18.2]} 45. Bxg6+ {[%clk 0:00:20.2]} 45... fxg6 {[%clk
0:00:17.5]} 46. Qc3 {[%clk 0:00:17.3]} 46... Qxb5 {[%clk 0:00:16.3]} 47. f5
{[%clk 0:00:13.7]} 47... Bxf5 {[%clk 0:00:16.3]} 48. Rf2 {[%clk 0:00:13.1]}
48... Rc4 {[%clk 0:00:12.1]} 49. Qe1 {[%clk 0:00:14.3]} 49... Re4 {[%clk
0:00:12.8]} 50. Qc1 {[%clk 0:00:12.5]} 50... Qe5 {[%clk 0:00:14]} 51. Qa3 {[%clk
0:00:11.2]} 51... Re2 {[%clk 0:00:14.4]} 52. Qf3 {[%clk 0:00:11.5]} 52... Rxf2+
{[%clk 0:00:15.5]} 53. Qxf2 {[%clk 0:00:13.3]} 53... Qf6 {[%clk 0:00:16.7]} 54.
Qa7 {[%clk 0:00:12.7]} 54... Bg4 {[%clk 0:00:17.9]} 55. Qb7 {[%clk 0:00:08.5]}
55... Qe6 {[%clk 0:00:19.2]} 56. Qg2 {[%clk 0:00:06.5]} 56... Qe2 {[%clk
0:00:20.7]} 57. Qxe2 {[%clk 0:00:04.3]} 57... Bxe2 {[%clk 0:00:22.6]} 0-1

[Event "*** Biggest EVER Titled Tuesday"]
[Site "Chess.com"]
[Date "2018.04.17"]
[Round "3"]
[White "itisabigworld"]
[Black "Kazakov_Konstantin"]
[Result "0-1"]
[WhiteElo "2296"]
[BlackElo "2468"]
[TimeControl "180+2"]
[EndTime "13:37:28 PDT"]
[Termination "Kazakov_Konstantin won on time"]

1. e4 {[%clk 0:02:30.4]} 1... e5 {[%clk 0:02:58.6]} 2. Nf3 {[%clk 0:02:31.3]}
2... Nc6 {[%clk 0:02:58]} 3. d4 {[%clk 0:02:32.8]} 3... exd4 {[%clk 0:02:49]} 4.
Nxd4 {[%clk 0:02:27]} 4... Nf6 {[%clk 0:02:42.9]} 5. Nxc6 {[%clk 0:02:25.8]}
5... bxc6 {[%clk 0:02:42.1]} 6. e5 {[%clk 0:02:26.3]} 6... Qe7 {[%clk
0:02:42.1]} 7. Qe2 {[%clk 0:02:23.3]} 7... Nd5 {[%clk 0:02:43.3]} 8. c4 {[%clk
0:02:24.3]} 8... Nb6 {[%clk 0:02:40.6]} 9. Nc3 {[%clk 0:02:25]} 9... Qe6 {[%clk
0:02:35.7]} 10. b3 {[%clk 0:02:16.5]} 10... Bb4 {[%clk 0:02:29.5]} 11. Bd2
{[%clk 0:02:17.6]} 11... O-O {[%clk 0:02:28.7]} 12. a3 {[%clk 0:02:18.6]} 12...
Bc5 {[%clk 0:02:12.6]} 13. Qe4 {[%clk 0:02:16.7]} 13... d5 {[%clk 0:02:09.1]}
14. cxd5 {[%clk 0:02:03.7]} 14... cxd5 {[%clk 0:02:08.6]} 15. Qf4 {[%clk
0:02:04.8]} 15... f6 {[%clk 0:02:05.3]} 16. Qg3 {[%clk 0:01:43.1]} 16... Qxe5+
{[%clk 0:02:01.2]} 17. Kd1 {[%clk 0:01:41.3]} 17... Bf5 {[%clk 0:01:43.9]} 18.
Bb5 {[%clk 0:01:27.6]} 18... Rad8 {[%clk 0:01:34.5]} 19. Re1 {[%clk 0:01:28.1]}
19... Qxg3 {[%clk 0:01:33.1]} 20. fxg3 {[%clk 0:01:28.9]} 20... Bf2 {[%clk
0:01:04.8]} 21. Rf1 {[%clk 0:01:27.7]} 21... Bg4+ {[%clk 0:01:03.7]} 22. Kc2
{[%clk 0:01:28.8]} 22... Bd4 {[%clk 0:01:02.8]} 23. h3 {[%clk 0:01:29.6]} 23...
Bh5 {[%clk 0:01:02.3]} 24. Rae1 {[%clk 0:01:26.2]} 24... Bg6+ {[%clk 0:01:01.6]}
25. Kb2 {[%clk 0:01:27.2]} 25... c5 {[%clk 0:00:56.3]} 26. Ka2 {[%clk
0:01:27.5]} 26... Bxc3 {[%clk 0:00:52.1]} 27. Bxc3 {[%clk 0:01:28.2]} 27... d4
{[%clk 0:00:53.5]} 28. Ba5 {[%clk 0:01:27.5]} 28... Rb8 {[%clk 0:00:50.1]} 29.
Re7 {[%clk 0:01:22.7]} 29... Bf7 {[%clk 0:00:39.2]} 30. a4 {[%clk 0:00:53.2]}
30... Nc8 {[%clk 0:00:33.2]} 31. Rc7 {[%clk 0:00:50.9]} 31... Nd6 {[%clk
0:00:30.1]} 32. Rxc5 {[%clk 0:00:50]} 32... Nxb5 {[%clk 0:00:23.7]} 33. Rxb5
{[%clk 0:00:51]} 33... Rxb5 {[%clk 0:00:22.9]} 34. axb5 {[%clk 0:00:52.5]} 34...
Rb8 {[%clk 0:00:23.6]} 35. Rf5 {[%clk 0:00:53.3]} 35... g6 {[%clk 0:00:20.8]}
36. Rc5 {[%clk 0:00:54.2]} 36... d3 {[%clk 0:00:20.1]} 37. Kb2 {[%clk
0:00:54.5]} 37... Be8 {[%clk 0:00:20.4]} 38. Kc3 {[%clk 0:00:53.2]} 38... Bxb5
{[%clk 0:00:20.8]} 39. Rc7 {[%clk 0:00:51.8]} 39... a6 {[%clk 0:00:21.7]} 40.
Kd2 {[%clk 0:00:52]} 40... Re8 {[%clk 0:00:22.3]} 41. Bc3 {[%clk 0:00:53.1]}
41... Re2+ {[%clk 0:00:22.4]} 42. Kd1 {[%clk 0:00:54.3]} 42... Rc2 {[%clk
0:00:22.8]} 43. Rc8+ {[%clk 0:00:50.8]} 43... Kf7 {[%clk 0:00:22.7]} 44. Rc7+
{[%clk 0:00:51.9]} 44... Ke6 {[%clk 0:00:23.4]} 45. Ba5 {[%clk 0:00:53.1]} 45...
Rxg2 {[%clk 0:00:23.4]} 46. Rxh7 {[%clk 0:00:54]} 46... Bc6 {[%clk 0:00:23.7]}
47. g4 {[%clk 0:00:53.4]} 47... Bf3+ {[%clk 0:00:24.5]} 48. Kc1 {[%clk
0:00:54.8]} 48... Rc2+ {[%clk 0:00:25.4]} 49. Kb1 {[%clk 0:00:56]} 49... Be4
{[%clk 0:00:26.9]} 50. Bb4 {[%clk 0:00:20.7]} 50... d2 {[%clk 0:00:20.5]} 51.
Re7+ {[%clk 0:00:21.5]} 51... Kd5 {[%clk 0:00:21.7]} 52. Rd7+ {[%clk 0:00:21.5]}
52... Kc6 {[%clk 0:00:22.1]} 53. Rd6+ {[%clk 0:00:22.6]} 53... Kc7 {[%clk
0:00:22.8]} 54. Rd4 {[%clk 0:00:13.8]} 54... Rc4+ {[%clk 0:00:21.4]} 55. Rxe4
{[%clk 0:00:13.4]} 55... d1=Q+ {[%clk 0:00:22.5]} 56. Ka2 {[%clk 0:00:14.5]}
56... Rc2+ {[%clk 0:00:23.7]} 0-1

[Event "*** Biggest EVER Titled Tuesday"]
[Site "Chess.com"]
[Date "2018.04.17"]
[Round "3"]
[White "sergeikim"]
[Black "bascheyaro"]
[Result "0-1"]
[WhiteElo "2454"]
[BlackElo "2680"]
[TimeControl "180+2"]
[EndTime "13:37:30 PDT"]
[Termination "bascheyaro won by resignation"]

1. d4 {[%clk 0:02:59.7]} 1... Nf6 {[%clk 0:02:59.7]} 2. c4 {[%clk 0:03:00.5]}
2... c6 {[%clk 0:03:00.5]} 3. Nf3 {[%clk 0:03:00.6]} 3... d5 {[%clk 0:03:01.9]}
4. Qc2 {[%clk 0:03:01.3]} 4... g6 {[%clk 0:03:03]} 5. e3 {[%clk 0:03:01.3]} 5...
Bf5 {[%clk 0:03:03.1]} 6. Bd3 {[%clk 0:03:02]} 6... Bxd3 {[%clk 0:03:03.6]} 7.
Qxd3 {[%clk 0:03:03.1]} 7... Bg7 {[%clk 0:03:04.8]} 8. O-O {[%clk 0:03:03.9]}
8... O-O {[%clk 0:03:05.7]} 9. Nc3 {[%clk 0:03:04.7]} 9... e6 {[%clk 0:03:06.6]}
10. e4 {[%clk 0:03:03.2]} 10... dxe4 {[%clk 0:03:07.2]} 11. Nxe4 {[%clk
0:03:04.1]} 11... Nxe4 {[%clk 0:03:08.6]} 12. Qxe4 {[%clk 0:03:05.1]} 12... Nd7
{[%clk 0:03:10.5]} 13. Bg5 {[%clk 0:03:04.3]} 13... Qb6 {[%clk 0:03:10.2]} 14.
Be3 {[%clk 0:02:32.4]} 14... Rfd8 {[%clk 0:03:08]} 15. Qh4 {[%clk 0:02:26.2]}
15... Qxb2 {[%clk 0:02:55.5]} 16. Rab1 {[%clk 0:02:17.3]} 16... Qxa2 {[%clk
0:02:56.3]} 17. Rxb7 {[%clk 0:02:17.6]} 17... Qxc4 {[%clk 0:02:56.1]} 18. Ng5
{[%clk 0:02:14.9]} 18... h6 {[%clk 0:02:56.1]} 19. Ne4 {[%clk 0:02:14.3]} 19...
Rab8 {[%clk 0:02:17.8]} 20. Rxa7 {[%clk 0:02:03]} 20... g5 {[%clk 0:02:08.2]}
21. Qh5 {[%clk 0:01:52.8]} 21... Qd5 {[%clk 0:02:05.6]} 22. Nc3 {[%clk
0:01:46.1]} 22... Qf5 {[%clk 0:02:00.7]} 23. h4 {[%clk 0:01:37.4]} 23... g4
{[%clk 0:01:53.1]} 24. Qxf5 {[%clk 0:01:29.8]} 24... exf5 {[%clk 0:01:55]} 25.
Rc1 {[%clk 0:01:24.9]} 25... Nf8 {[%clk 0:01:49.3]} 26. Ne2 {[%clk 0:01:22.5]}
26... Rbc8 {[%clk 0:01:43.9]} 27. Ra6 {[%clk 0:01:12.7]} 27... Rd6 {[%clk
0:01:43.2]} 28. g3 {[%clk 0:01:04.8]} 28... Ne6 {[%clk 0:01:42.5]} 29. d5 {[%clk
0:00:57.2]} 29... Rxd5 {[%clk 0:01:43]} 30. Raxc6 {[%clk 0:00:56.2]} 30... Rxc6
{[%clk 0:01:30.3]} 31. Rxc6 {[%clk 0:00:56.2]} 31... h5 {[%clk 0:01:31.8]} 32.
Ra6 {[%clk 0:00:50.9]} 32... Be5 {[%clk 0:01:31.7]} 33. Ra8+ {[%clk 0:00:49.5]}
33... Kg7 {[%clk 0:01:32.6]} 34. Ra7 {[%clk 0:00:50.4]} 34... Rd1+ {[%clk
0:01:33.4]} 35. Kg2 {[%clk 0:00:49.8]} 35... Re1 {[%clk 0:01:34.9]} 36. Ra2
{[%clk 0:00:46.6]} 36... Kg6 {[%clk 0:01:33.8]} 37. Rc2 {[%clk 0:00:42.9]} 37...
Rb1 {[%clk 0:01:33.4]} 38. Ra2 {[%clk 0:00:43.2]} 38... Rb3 {[%clk 0:01:33.6]}
39. Ra6 {[%clk 0:00:41.4]} 39... Rb2 {[%clk 0:01:32.6]} 40. Kf1 {[%clk
0:00:41.8]} 40... Kg7 {[%clk 0:01:27.7]} 41. Ra5 {[%clk 0:00:40.3]} 41... Rb1+
{[%clk 0:01:18.9]} 42. Kg2 {[%clk 0:00:39.6]} 42... f6 {[%clk 0:01:10]} 43. Ra7+
{[%clk 0:00:32.8]} 43... Kg6 {[%clk 0:01:09.7]} 44. Ra6 {[%clk 0:00:33.4]} 44...
Nc7 {[%clk 0:01:10.5]} 45. Rc6 {[%clk 0:00:29.7]} 45... Nd5 {[%clk 0:01:11.5]}
46. Bd4 {[%clk 0:00:29.7]} 46... Re1 {[%clk 0:01:10.8]} 47. Bxe5 {[%clk
0:00:26.5]} 47... Rxe2 {[%clk 0:01:12.1]} 48. Bd4 {[%clk 0:00:27.5]} 48... f4
{[%clk 0:01:13.1]} 49. gxf4 {[%clk 0:00:26.5]} 49... Rd2 {[%clk 0:01:13.1]} 50.
Ba7 {[%clk 0:00:12.7]} 50... Nxf4+ {[%clk 0:01:13.9]} 51. Kg3 {[%clk 0:00:13.7]}
51... Nd5 {[%clk 0:01:08.2]} 52. Bb8 {[%clk 0:00:12.9]} 52... Rd1 {[%clk
0:01:03.6]} 53. Kg2 {[%clk 0:00:12.5]} 53... Rd2 {[%clk 0:01:03.3]} 54. Kg3
{[%clk 0:00:13.3]} 54... Ne7 {[%clk 0:01:04.6]} 55. Ra6 {[%clk 0:00:11.5]} 55...
Nf5+ {[%clk 0:01:06]} 56. Kg2 {[%clk 0:00:11.2]} 56... Nxh4+ {[%clk 0:00:56.8]}
57. Kf1 {[%clk 0:00:12.6]} 57... Nf3 {[%clk 0:00:56.3]} 58. Ra5 {[%clk
0:00:10.2]} 58... h4 {[%clk 0:00:57]} 59. Bf4 {[%clk 0:00:06.1]} 59... Rc2
{[%clk 0:00:55.3]} 60. Ra8 {[%clk 0:00:04.8]} 60... Kf5 {[%clk 0:00:55.6]} 61.
Be3 {[%clk 0:00:05.4]} 61... h3 {[%clk 0:00:53.3]} 62. Ra5+ {[%clk 0:00:05.7]}
62... Kg6 {[%clk 0:00:54.3]} 63. Ra8 {[%clk 0:00:05.5]} 63... Rb2 {[%clk
0:00:55.6]} 64. Rg8+ {[%clk 0:00:04.8]} 64... Kf5 {[%clk 0:00:56.9]} 65. Rh8
{[%clk 0:00:05.4]} 65... Rb1+ {[%clk 0:00:58]} 66. Ke2 {[%clk 0:00:06.2]} 66...
h2 {[%clk 0:00:59.5]} 0-1